[Event "CCT Airthings Masters Play-In 2023"]
[Site "Online"]
[Date "2023.02.03"]
[Round "3"]
[White "GukeshDommaraju"]
[Black "adotand"]
[Result "1-0"]
[ECO "D02"]
[WhiteElo "2590"]
[BlackElo "2435"]
[Annotator "TA"]
[PlyCount "79"]
[EventDate "2023.02.03"]
[EventType "swiss"]
[EventCountry "NET"]
[SourceTitle "playchess.com"]
[Source "ChessBase"]
[SourceQuality "1"]
[TimeControl "600+2"]

{[%evp 11,79,20,34,16,27,16,27,-10,0,-6,-11,-19,-10,-21,13,6,14,18,19,-14,5,0,0,0,41,35,60,-19,-10,-20,-20,-14,-25,-17,-13,-16,-24,-18,-32,-43,-40,-38,-33,-41,-31,-40,0,0,0,-61,-61,-61,-61,-141,-71,-107,-21,-27,0,0,0,0,8,9,484,484,29991,29992,29993,29994]} 1. Nf3 {[%emt 0:00:03]} d5 {[%emt 0:00:06]} 2. g3 {[%emt 0:00:01]} Nc6 {[%emt 0:00:03]} 3. d4 {[%emt 0:00:01]} Bf5 {[%emt 0:00:01]} 4. Bg2 {[%emt 0:00:06]} Nb4 {[%emt 0:00:02]} 5. Na3 {[%emt 0:00:00][%cal Bb1a3,Ba3c2,Bc2e1,Be1d3][%mdl 32]} e6 {[%emt 0:00:01]} 6. O-O {[%emt 0:00:09]} Be7 {[%emt 0:00:01]} 7. c3 {[%emt 0:00:03] D02: 1 d4 d5 2 Nf3 sidelines, including 2...Nf6 3 g3 and 2...Nf6 3 Bf4.} Nc6 {[%emt 0:00:01] The main line 7...Nc6 scores better than 7...Na6.} 8. Nc2 {[%emt 0:00:02]} Nf6 {[%emt 0:00:33]} 9. Nh4 $5 {[%emt 0:00:02][%mdl 4] White has an edge. Leaves trodden paths.} Be4 $1 {[%emt 0:00:06] [#]} 10. Ne1 $146 {[%emt 0:00:27]} ({Predecessor:} 10. f3 Bxc2 11. Qxc2 Nd7 12. e4 Nb6 13. f4 Bxh4 14. gxh4 Qxh4 15. f5 O-O-O 16. a4 {0-1 Kushko,D (2324)-Sammed Jaykumar,S (2408) Budapest Vezerkepzo GM-B 11 2022 (8)}) 10... Bxg2 {[%emt 0:00:10]} 11. Nhxg2 {[%emt 0:00:02]} O-O {[%emt 0:00:03]} 12. Nd3 {[%emt 0:00:01]} Bd6 {[%emt 0:00:25]} 13. Bg5 {[%emt 0:00:01]} h6 {[%emt 0:00:05]} 14. Bxf6 {[%emt 0:00:01]} Qxf6 {[%emt 0:00:00]} 15. Ne3 {[%emt 0:00:25]} Qe7 {[%emt 0:00:16]} 16. b4 {[%emt 0:00:14]} a6 {[%emt 0:00:57]} 17. a4 {[%emt 0:00:10]} b5 {[%emt 0:00:29]} 18. Qb3 {[%emt 0:00:08]} Rfb8 {[%emt 0:00:10]} 19. Rfb1 {[%emt 0:02:02]} (19. a5 $14) 19... a5 $11 {[%emt 0:01:14]} 20. bxa5 {[%emt 0:00:08]} Nxa5 {[%emt 0:00:04]} 21. Qc2 {[%emt 0:00:04]} c6 {[%emt 0:00:19]} 22. axb5 {[%emt 0:00:26]} cxb5 {[%emt 0:00:00]} 23. Ra2 {[%emt 0:00:11]} Qe8 {[%emt 0:00:11]} 24. Rba1 {[%emt 0:00:19]} Nc4 {[%emt 0:00:01]} 25. Nf1 {[%emt 0:00:11]} Rxa2 {[%emt 0:01:04]} 26. Rxa2 {[%emt 0:00:05]} Qc6 {[%emt 0:00:13]} 27. Qb3 {[%emt 0:00:35]} Rc8 {[%emt 0:00:31]} 28. h4 {[%emt 0:00:10]} h5 {[%emt 0:00:07]} 29. Nh2 {[%emt 0:00:04]} Ra8 {[%emt 0:00:25]} 30. Nf3 {[%emt 0:00:06]} (30. Rxa8+ $11 Qxa8 31. Qxb5) 30... Ra4 $15 {[%emt 0:00:05]} 31. Nc1 {[%emt 0:02:01]} Qa6 {[%emt 0:00:19]} 32. Ng5 {[%emt 0:00:18] [#]} (32. e3 $15) 32... g6 {[%emt 0:00:45]} (32... Ba3 $142 $1 {[%cal Ra3c1]} 33. Nd3 Bd6) 33. e4 {[%emt 0:00:24][%cal Be2e4,Be4e5,Be5d6][%mdl 32]} Ra3 {[%emt 0:00:14]} ({Black should try} 33... Ba3 $17 34. Nd3 Be7) 34. Rxa3 $11 {[%emt 0:00:28]} Qxa3 {[%emt 0:00:01]} (34... Bxa3 {simplifies} 35. Qc2 Qa4 36. Nb3 dxe4 37. Nxe4 Na5) 35. Qxb5 {[%emt 0:00:26] Threatening mate with Qe8+.} Qxc1+ {[%emt 0:01:42]} 36. Kg2 {[%emt 0:00:01] [#] White threatens Qe8+ and mate.} Bf8 {[%emt 0:00:22] Strongly threatening ...Nd6.} (36... Qxc3 $2 37. Qe8+ (37. exd5 Ne3+ 38. fxe3 Qd2+ 39. Kf3 Qd1+ 40. Kg2 Qc2+ 41. Kg1 Qc1+ 42. Kg2 Qc2+ 43. Kg1 Qd1+ 44. Kg2 Qd2+ 45. Kf1 Qd1+ 46. Kg2 $11) 37... Bf8 38. Qxf7+ Kh8 39. Qxf8#) 37. Qd7 {[%emt 0:00:02]} Nd6 {[%emt 0:00:02][%mdl 8192]} (37... Qxc3 $2 {is a self mate.} 38. Qxf7+ Kh8 39. Qxf8#) (37... Ne3+ $1 $11 38. Kf3 (38. fxe3 Qd2+ 39. Kh3 Qf2 $11) 38... dxe4+ 39. Kxe4 Qc2+ 40. Kf3 (40. Kxe3 Qxc3+ 41. Ke4 Qc2+ 42. Ke3 Qc3+ 43. Kf4 Qc1+ 44. Kf3 Qa3+ 45. Kg2 Qe7 $11) 40... Qf5+ 41. Kxe3 Ba3) 38. e5 $18 {[%emt 0:00:01]} Qc2 {[%emt 0:00:03]} (38... Qxg5 $18 39. hxg5 Nf5) 39. exd6 {[%emt 0:00:03]} Qf5 {[%emt 0:00:00]} 40. Qe8 {[%emt 0:00:02] Weighted Error Value: White=0.15 (very precise) /Black=0.43} 1-0

[Event "CCT Airthings Masters Play-In 2023"]
[Site "Online"]
[Date "2023.02.03"]
[Round "3"]
[White "ChessLover"]
[Black "TheCount"]
[Result "1-0"]
[ECO "D38"]
[WhiteElo "2583"]
[BlackElo "2715"]
[Annotator "TA"]
[PlyCount "83"]
[EventDate "2023.02.03"]
[EventType "swiss"]
[EventCountry "NET"]
[SourceTitle "playchess.com"]
[Source "ChessBase"]
[SourceQuality "1"]
[TimeControl "600+2"]

{[%evp 14,83,29,14,21,5,10,18,20,27,37,0,16,8,19,0,0,2,4,-60,-77,-130,-130,-123,-129,-135,-116,-243,-94,-96,0,0,0,0,0,0,0,-22,-25,-32,-27,-51,-45,-93,-66,-63,-62,-71,-72,-68,-48,-91,-52,-36,22,19,73,70,154,148,154,158,158,158,294,282,530,520,4929,741,29997,29998]} 1. d4 {[%emt 0:00:03]} Nf6 {[%emt 0:00:08]} 2. c4 {[%emt 0:00:01]} e6 {[%emt 0:00:16]} 3. Nf3 {[%emt 0:00:02]} d5 {[%emt 0:00:05]} 4. Nc3 {[%emt 0:00:02]} Bb4 {[%emt 0:00:28]} 5. Bg5 {[%emt 0:00:03]} h6 {[%emt 0:00:08]} 6. Bxf6 {[%emt 0:00:00]} Qxf6 {[%emt 0:00:01]} 7. Qa4+ {[%emt 0:00:00]} Nc6 {[%emt 0:00:02]} 8. e3 {[%emt 0:00:01]} O-O {[%emt 0:00:09] D38: Queen's Gambit Declined: Ragozin Defence (4 Nf3 Bb4).} 9. Rd1 {[%emt 0:00:03]} Bd7 {[%emt 0:01:21]} 10. Qb3 {[%emt 0:00:15]} dxc4 {[%emt 0:00:16] The position is equal.} 11. Bxc4 {[%emt 0:00:03]} Qe7 {[%emt 0:00:02] [#]} 12. Bd3 $146 {[%emt 0:00:25]} ({Predecessor:} 12. Be2 Na5 13. Qc2 c5 14. a3 Bxc3+ 15. Qxc3 b6 16. dxc5 Ba4 17. Rd4 Bc6 18. cxb6 axb6 {1-0 Turov,M (2574)-Gukesh,D (2547) Wch Blitz Moscow 2019 (11)}) 12... Na5 {[%emt 0:01:56]} 13. Qc2 {[%emt 0:00:02]} c5 {[%emt 0:00:01]} 14. a3 {[%emt 0:00:28]} Bxc3+ {[%emt 0:00:01]} 15. Qxc3 {[%emt 0:00:02]} b6 {[%emt 0:00:00]} 16. Ne5 {[%emt 0:01:07]} (16. dxc5 $11 Ba4 17. Bc2 Bxc2 18. Qxc2) 16... Ba4 $15 {[%emt 0:00:08]} 17. Rd2 {[%emt 0:00:45]} (17. Rb1 $142) 17... Nb3 $17 {[%emt 0:00:22]} 18. Rc2 {[%emt 0:00:55]} cxd4 {[%emt 0:00:30]} 19. exd4 {[%emt 0:00:02]} Rfd8 {[%emt 0:00:20]} 20. Nf3 {[%emt 0:00:42] [#]} (20. O-O $17) 20... Nxd4 {[%emt 0:01:39]} 21. Nxd4 {[%emt 0:00:05]} Bxc2 {[%emt 0:00:01]} (21... Qd6 $17 {[%cal Oa4c2]} 22. Rd2 Rac8) 22. Nxc2 $11 {[%emt 0:00:09]} Rac8 {[%emt 0:00:07]} 23. Qb3 {[%emt 0:00:01]} Qd6 {[%emt 0:00:12]} (23... Qg5 $5 24. O-O $8 Qd5 25. Qxd5 Rxd5 $11) 24. Ke2 {[%emt 0:00:01]} a5 {[%emt 0:01:42][%cal Oa5a4]} 25. Rd1 {[%emt 0:00:50][%cal Od3h7] Strongly threatening Bh7+!} Qxh2 {[%emt 0:00:02]} 26. Ne3 {[%emt 0:00:03]} Qh5+ {[%emt 0:00:07]} 27. g4 {[%emt 0:00:03]} Qe5 {[%emt 0:00:07]} 28. Rd2 {[%emt 0:00:10]} (28. Qxb6 Rb8 29. Qc6 Qxb2+ 30. Kf3 Qxa3 $19) (28. Kf1 $15) 28... Rd6 {[%emt 0:00:09]} 29. Rc2 {[%emt 0:01:10]} Rcd8 {[%emt 0:00:10]} 30. Qc3 {[%emt 0:00:14]} Qf4 {[%emt 0:00:06]} 31. Ba6 {[%emt 0:00:15][%cal Bd3a6,Ba6b7,Bb7c6,Bc6e4][%mdl 32]} Qe4 {[%emt 0:00:08][%cal Oh6h5]} 32. Qc4 {[%emt 0:00:47]} Rd4 {[%emt 0:00:01]} 33. Qc7 {[%emt 0:00:01]} f5 {[%emt 0:00:08]} ({Black should play} 33... R8d6 $15) 34. f3 {[%emt 0:00:14][%mdl 1024] White has compensation.} Qa8 {[%emt 0:00:07]} (34... Qf4 $1 $11 35. Qxf4 Rxf4) 35. Bb7 {[%emt 0:00:10] Really sharp! Black is weak on the light squares} ({Much weaker is} 35. Qxb6 $6 fxg4 36. Nxg4 (36. Qxa5 $2 {leads to mate.} Qxf3+ 37. Ke1 Rd1+ {[%mdl 64] Back Rank} 38. Nxd1 Rxd1#) (36. Qxe6+ $2 Kh8 $19) 36... Rxg4 37. Qxe6+ Kh8 38. Qxg4 Qxa6+ 39. Kf2 a4 $15) 35... Qa7 {[%emt 0:00:03] [#]} ({Better is} 35... Qb8 $14 36. Qxb8 Rxb8) 36. Qe7 $1 $16 {[%emt 0:00:36]} (36. gxf5 $2 {perishes.} R4d7 37. Qe5 Rxb7 $19) 36... R4d7 {[%emt 0:00:01] Prevents Rc7.} 37. Qxe6+ {[%emt 0:00:01]} Kh8 {[%emt 0:00:01] [#]} 38. Bc6 $40 {[%emt 0:00:06][%mdl 128] White has strong attack.} Re7 {[%emt 0:00:05]} (38... Rd4 $16) 39. Qxf5 $18 {[%emt 0:00:05] aiming for Be4. Active counter play!} b5 $2 {[%emt 0:00:02]} (39... Rf7) 40. Be4 {[%emt 0:00:00][%csl Ge4][%cal Rf5h7]} Kg8 {[%emt 0:00:04]} (40... Rxe4 $142 41. fxe4 b4) 41. Nd5 {[%emt 0:00:06]} (41. Qh7+ $142 Kf7 42. Nf5 Rxe4+ 43. fxe4) 41... Rxd5 {[%emt 0:00:06]} 42. Rc8+ {[%emt 0:00:04] White used his chance. Excellently played by ChessLover!   Weighted Error Value: White=0.19 (very precise) /Black=0.50} 1-0

[Event "CCT Airthings Masters Play-In 2023"]
[Site "Online"]
[Date "2023.02.03"]
[Round "3"]
[White "platy3"]
[Black "Grischuk, Alexander"]
[Result "1/2-1/2"]
[ECO "B33"]
[WhiteElo "2578"]
[BlackElo "2745"]
[Annotator "TA"]
[PlyCount "49"]
[EventDate "2023.02.03"]
[EventType "swiss"]
[EventCountry "NET"]
[SourceTitle "playchess.com"]
[Source "ChessBase"]
[SourceQuality "1"]
[TimeControl "600+2"]

{[%evp 24,49,29,31,11,20,12,12,14,14,14,21,29,10,25,0,0,0,0,0,0,0,0,0,0,-13,-14,-16]} 1. e4 {[%emt 0:00:03]} c5 {[%emt 0:00:19]} 2. Nf3 {[%emt 0:00:02]} Nc6 {[%emt 0:00:01]} 3. d4 {[%emt 0:00:03]} cxd4 {[%emt 0:00:00]} 4. Nxd4 {[%emt 0:00:00]} Nf6 {[%emt 0:00:00]} 5. Nc3 {[%emt 0:00:02]} e5 {[%emt 0:00:01]} 6. Ndb5 {[%emt 0:00:01]} d6 {[%emt 0:00:01]} 7. Bg5 {[%emt 0:00:08]} a6 {[%emt 0:00:02]} 8. Na3 {[%emt 0:00:01]} b5 {[%emt 0:00:00]} 9. Nd5 {[%emt 0:00:01]} Be7 {[%emt 0:00:02]} 10. Bxf6 {[%emt 0:00:02]} Bxf6 {[%emt 0:00:01]} 11. c3 {[%emt 0:00:06][%cal Bc2c3,Bc3b4,Bb4b5][%mdl 32]} Rb8 {[%emt 0:00:26]} 12. Nc2 {[%emt 0:00:02]} Bg5 {[%emt 0:00:01]} 13. a4 {[%emt 0:00:10]} bxa4 {[%emt 0:00:06] B33: Sicilian: Pelikan and Sveshnikov Variations.} 14. Ncb4 {[%emt 0:00:01]} Nxb4 {[%emt 0:00:02]} 15. cxb4 {[%emt 0:00:20]} O-O $1 {[%emt 0:00:06] 15...0-0 scores better than 15...Bd7.} 16. Rxa4 {[%emt 0:00:24]} a5 {[%emt 0:00:04]} 17. b5 {[%emt 0:00:07]} (17. Rxa5 Rxb4 18. Qa1 Rxe4+ 19. Be2 Bb7 $19) ({Much weaker is} 17. bxa5 Rxb2 18. Qa1 Rc2 $17) 17... Bd7 {[%emt 0:00:02]} 18. Nc3 {[%emt 0:00:15][%cal Of1c4]} d5 {[%emt 0:00:06]} 19. Nxd5 {[%emt 0:00:02]} (19. exd5 $5 e4 20. Rxe4 $14) 19... Be7 {[%emt 0:00:10] The position is equal.} 20. Be2 {[%emt 0:00:36]} Bxb5 {[%emt 0:00:07]} 21. Bxb5 {[%emt 0:00:02]} Rxb5 {[%emt 0:00:00]} 22. O-O {[%emt 0:00:01]} Bc5 {[%emt 0:00:58] [#]} 23. Qe2 $146 {[%emt 0:00:40]} ({Predecessor:} 23. Qd2 Kh8 24. Kh1 f5 25. Qe2 Qb8 26. Ra2 Bd4 27. Nc3 Bxc3 28. bxc3 fxe4 29. Qxe4 {½-½ Alekseev,E (2607)-Matlakov,M (2730) RUS-ch Higher League 70th 2017 (3)}) 23... Qb8 {[%emt 0:01:29]} 24. b3 {[%emt 0:00:17]} Kh8 {[%emt 0:00:18]} 25. g3 {[%emt 0:00:15] A rather calm draw.   Weighted Error Value: White=0.04 (flawless) /Black=0.01 (flawless)} 1/2-1/2

[Event "CCT Airthings Masters Play-In 2023"]
[Site "Online"]
[Date "2023.02.03"]
[Round "3"]
[White "daika91"]
[Black "Firouzja, Alireza"]
[Result "0-1"]
[ECO "E71"]
[WhiteElo "2575"]
[BlackElo "2785"]
[Annotator "NA"]
[PlyCount "156"]
[EventDate "2023.02.03"]
[EventType "swiss"]
[EventCountry "NET"]
[SourceTitle "playchess.com"]
[Source "ChessBase"]
[SourceQuality "1"]
[TimeControl "600+2"]

1. d4 {[%emt 0:00:09]} Nf6 {[%emt 0:00:05]} 2. c4 {[%emt 0:00:01]} g6 {[%emt 0:00:02]} 3. Nc3 {[%emt 0:00:03]} Bg7 {[%emt 0:00:01]} 4. e4 {[%emt 0:00:02]} d6 {[%emt 0:00:00]} 5. h3 {[%emt 0:00:01]} Nbd7 {[%emt 0:00:12]} 6. Be3 {[%emt 0:00:12]} e5 {[%emt 0:00:01]} 7. d5 {[%emt 0:00:17]} Nc5 {[%emt 0:00:01]} 8. Qc2 {[%emt 0:00:09]} c6 {[%emt 0:00:05]} 9. b4 {[%emt 0:00:09]} Na6 {[%emt 0:00:47]} 10. a3 {[%emt 0:00:04]} cxd5 {[%emt 0:00:09]} 11. cxd5 {[%emt 0:00:02]} O-O {[%emt 0:00:01]} 12. Bd3 {[%emt 0:00:05]} Nh5 {[%emt 0:00:05]} 13. Nge2 {[%emt 0:00:02]} Bd7 {[%emt 0:00:28]} 14. O-O {[%emt 0:00:43]} f5 {[%emt 0:00:30]} 15. f3 {[%emt 0:00:02]} f4 {[%emt 0:00:17]} 16. Bf2 {[%emt 0:00:01]} Nc7 {[%emt 0:00:02]} 17. a4 {[%emt 0:00:16]} Bf6 {[%emt 0:00:08]} 18. Nb5 {[%emt 0:00:03]} Nxb5 {[%emt 0:00:37]} 19. Bxb5 {[%emt 0:00:02]} Bc8 {[%emt 0:00:04]} 20. a5 {[%emt 0:00:17]} Bh4 {[%emt 0:00:17]} 21. Rac1 {[%emt 0:00:07]} Bxf2+ {[%emt 0:00:12]} 22. Rxf2 {[%emt 0:00:00]} a6 {[%emt 0:00:03]} 23. Bd3 {[%emt 0:00:57]} Rf7 {[%emt 0:00:01]} 24. Nc3 {[%emt 0:00:07]} Bd7 {[%emt 0:00:03]} 25. Qd1 {[%emt 0:00:40]} Rc8 {[%emt 0:00:02]} 26. Rfc2 {[%emt 0:00:02]} Qg5 {[%emt 0:00:02]} 27. Kf1 {[%emt 0:00:42]} Ng3+ {[%emt 0:00:16]} 28. Ke1 {[%emt 0:00:01]} Kg7 {[%emt 0:00:09]} 29. Qd2 {[%emt 0:00:13]} Nh1 {[%emt 0:00:10]} 30. Kf1 {[%emt 0:00:32]} Qh4 {[%emt 0:00:24]} 31. Kg1 {[%emt 0:00:26]} Ng3 {[%emt 0:00:01]} 32. Ne2 {[%emt 0:00:31]} Rxc2 {[%emt 0:00:02]} 33. Rxc2 {[%emt 0:00:04]} Ba4 {[%emt 0:00:05]} 34. Rc1 {[%emt 0:00:12]} g5 {[%emt 0:00:14]} 35. Nxg3 {[%emt 0:00:28]} fxg3 {[%emt 0:00:02]} 36. Rc8 {[%emt 0:00:37]} h5 {[%emt 0:00:13]} 37. Be2 {[%emt 0:00:51]} Bd7 {[%emt 0:00:35]} 38. Rc7 {[%emt 0:00:02]} Kg6 {[%emt 0:00:02]} 39. Bd1 {[%emt 0:01:45]} g4 {[%emt 0:02:47]} 40. Rxb7 {[%emt 0:00:01]} gxh3 {[%emt 0:00:03]} 41. Rb6 {[%emt 0:00:01]} Rf6 {[%emt 0:00:20]} 42. Rxa6 {[%emt 0:00:05]} hxg2 {[%emt 0:00:05]} 43. Qxg2 {[%emt 0:00:03]} Bh3 {[%emt 0:00:20]} 44. Qd2 {[%emt 0:00:03]} Bd7 {[%emt 0:01:19]} 45. Ra8 {[%emt 0:00:04]} Kg7 {[%emt 0:00:03]} 46. a6 {[%emt 0:00:12]} g2 {[%emt 0:00:03]} 47. Qxg2+ {[%emt 0:00:04]} Rg6 {[%emt 0:00:01]} 48. Rg8+ {[%emt 0:00:02]} Kxg8 {[%emt 0:00:00]} 49. Qxg6+ {[%emt 0:00:00]} Kf8 {[%emt 0:00:01]} 50. Qxd6+ {[%emt 0:00:02]} Ke8 {[%emt 0:00:03]} 51. Qxe5+ {[%emt 0:00:00]} Kd8 {[%emt 0:00:00]} 52. Qb8+ {[%emt 0:00:02]} Ke7 {[%emt 0:00:01]} 53. Qe5+ {[%emt 0:00:00]} Kd8 {[%emt 0:00:00]} 54. Qb8+ {[%emt 0:00:02]} Bc8 {[%emt 0:00:11]} 55. Qb6+ {[%emt 0:00:04]} Ke7 {[%emt 0:00:01]} 56. d6+ {[%emt 0:00:03]} Kf8 {[%emt 0:00:03]} 57. Qf2 {[%emt 0:00:04]} Qg5+ {[%emt 0:00:01]} 58. Qg2 {[%emt 0:00:02]} Qe3+ {[%emt 0:00:01]} 59. Qf2 {[%emt 0:00:01]} Qg5+ {[%emt 0:00:01]} 60. Kh1 {[%emt 0:00:01]} Qc1 {[%emt 0:00:02]} 61. Qf1 {[%emt 0:00:04]} Qf4 {[%emt 0:00:03]} 62. a7 {[%emt 0:00:02]} Qh4+ {[%emt 0:00:02]} 63. Kg1 {[%emt 0:00:01]} Qg3+ {[%emt 0:00:02]} 64. Qg2 {[%emt 0:00:01]} Qe1+ {[%emt 0:00:00]} 65. Kh2 {[%emt 0:00:01]} Qh4+ {[%emt 0:00:01]} 66. Kg1 {[%emt 0:00:02]} Qe1+ {[%emt 0:00:00]} 67. Qf1 {[%emt 0:00:01]} Qg3+ {[%emt 0:00:01]} 68. Kh1 {[%emt 0:00:01]} Qh4+ {[%emt 0:00:00]} 69. Kg2 {[%emt 0:00:06]} Bh3+ {[%emt 0:00:06]} 70. Kg1 {[%emt 0:00:00]} Qg3+ {[%emt 0:00:01]} 71. Kh1 {[%emt 0:00:01]} Bxf1 {[%emt 0:00:01]} 72. a8=Q+ {[%emt 0:00:01]} Kg7 {[%emt 0:00:00]} 73. Qa7+ {[%emt 0:00:03]} Kh6 {[%emt 0:00:08]} 74. Qe3+ {[%emt 0:00:02]} Kh7 {[%emt 0:00:01]} 75. Qd2 {[%emt 0:00:03]} h4 {[%emt 0:00:05]} 76. d7 {[%emt 0:00:08]} h3 {[%emt 0:00:01]} 77. d8=Q {[%emt 0:00:02]} Bg2+ {[%emt 0:00:01]} 78. Kg1 {[%emt 0:00:01]} h2# {[%emt 0:00:00]} 0-1

[Event "CCT Airthings Masters Play-In 2023"]
[Site "Online"]
[Date "2023.02.03"]
[Round "3"]
[White "Njal28"]
[Black "wonderfultime"]
[Result "1/2-1/2"]
[ECO "D10"]
[WhiteElo "2571"]
[BlackElo "2648"]
[Annotator "NA"]
[PlyCount "29"]
[EventDate "2023.02.03"]
[EventType "swiss"]
[EventCountry "NET"]
[SourceTitle "playchess.com"]
[Source "ChessBase"]
[SourceQuality "1"]
[TimeControl "600+2"]

1. d4 {[%emt 0:00:03]} d5 {[%emt 0:00:05]} 2. c4 {[%emt 0:00:01]} c6 {[%emt 0:00:01]} 3. cxd5 {[%emt 0:00:08]} cxd5 {[%emt 0:00:02]} 4. Bf4 {[%emt 0:00:00]} Nf6 {[%emt 0:00:01]} 5. e3 {[%emt 0:00:02]} Nc6 {[%emt 0:00:02]} 6. Bd3 {[%emt 0:00:01]} Bg4 {[%emt 0:00:08]} 7. f3 {[%emt 0:00:45]} Bh5 {[%emt 0:00:07]} 8. Nc3 {[%emt 0:00:13]} e6 {[%emt 0:00:11]} 9. Qb3 {[%emt 0:00:10]} Qb6 {[%emt 0:00:04]} 10. Qxb6 {[%emt 0:00:09]} axb6 {[%emt 0:00:00]} 11. Nge2 {[%emt 0:00:12]} Bg6 {[%emt 0:00:24]} 12. Bb5 {[%emt 0:00:15]} Be7 {[%emt 0:00:50]} 13. Kd2 {[%emt 0:00:06]} O-O {[%emt 0:00:10]} 14. Rhc1 {[%emt 0:00:10]} Rfc8 {[%emt 0:00:09]} 15. g4 {[%emt 0:00:51]} 1/2-1/2

[Event "CCT Airthings Masters Play-In 2023"]
[Site "Online"]
[Date "2023.02.03"]
[Round "3"]
[White "Infernal_XaM"]
[Black "Azeryahu"]
[Result "1-0"]
[ECO "B12"]
[WhiteElo "2569"]
[BlackElo "2415"]
[Annotator "TA"]
[PlyCount "51"]
[EventDate "2023.02.03"]
[EventType "swiss"]
[EventCountry "NET"]
[SourceTitle "playchess.com"]
[Source "ChessBase"]
[SourceQuality "1"]
[TimeControl "600+2"]

{[%evp 10,51,19,16,24,0,36,13,26,-8,37,34,45,39,49,41,33,36,41,50,58,54,60,47,51,40,35,46,56,59,52,60,108,89,98,98,313,323,418,418,418,407,604,609]} 1. e4 {[%emt 0:00:03]} c6 {[%emt 0:00:08]} 2. d4 {[%emt 0:00:01]} d5 {[%emt 0:00:01]} 3. e5 {[%emt 0:00:01]} Bf5 {[%emt 0:00:08]} 4. Nd2 {[%emt 0:00:06]} e6 {[%emt 0:00:18]} 5. Nb3 {[%emt 0:00:02]} Nd7 {[%emt 0:00:01]} 6. Nf3 {[%emt 0:00:02]} Bg6 {[%emt 0:00:27] 6...Qc7 is a critical line. B12: Caro-Kann: Advance Variation.} 7. a4 $5 {[%emt 0:00:09][%mdl 4] A promising side line.} Nh6 {[%emt 0:00:12]} 8. Be2 {[%emt 0:00:18]} Nf5 {[%emt 0:00:16] [#] The position is equal.} 9. h4 $146 {[%emt 0:00:02] [#] aiming for h5.} ({Predecessor:} 9. O-O Be7 10. Ne1 a6 11. Nd3 Qc7 12. f4 c5 13. dxc5 Nxc5 14. Ndxc5 Bxc5+ 15. Nxc5 Qxc5+ {1-0 Klekowski,M (2506)-Ly,M (2484) Titled Tuesday intern op 30th June blitz 2020 (4)}) 9... h5 {[%emt 0:00:28]} 10. g3 {[%emt 0:00:10]} Rc8 {[%emt 0:00:07]} 11. c3 {[%emt 0:00:02]} c5 {[%emt 0:00:23]} 12. dxc5 {[%emt 0:00:02]} Bxc5 {[%emt 0:02:03]} 13. Nxc5 {[%emt 0:00:04]} Nxc5 {[%emt 0:00:01]} 14. O-O {[%emt 0:00:02]} a6 {[%emt 0:00:23]} 15. a5 {[%emt 0:00:06]} Ne7 {[%emt 0:02:30]} 16. Be3 {[%emt 0:00:17]} Nd7 {[%emt 0:00:03] Black is weak on the dark squares} 17. Qb3 {[%emt 0:00:08]} Qc7 {[%emt 0:00:03]} 18. Nd4 {[%emt 0:01:17]} Nf5 {[%emt 0:00:24] [#] Strongly threatening ...Nxe3.} 19. Bf4 {[%emt 0:00:33]} Ne7 {[%emt 0:01:07]} 20. Rfc1 {[%emt 0:00:05] c4 would be deadly.} Nc6 {[%emt 0:00:02]} (20... O-O $1 $14 {feels stronger.}) 21. Nxc6 $16 {[%emt 0:00:03]} Qxc6 {[%emt 0:00:02]} 22. c4 $36 {[%emt 0:00:03][%cal Bc3c4,Bc4d5][%mdl 2080] Hoping for cxd5. Keeping Black busy. White is more active.} Nc5 $2 {[%emt 0:00:24] Black cannot hold the game after this.} (22... O-O $16) 23. Qd1 $18 {[%emt 0:00:23]} O-O {[%emt 0:00:18]} 24. b4 {[%emt 0:00:04]} ({Weaker is} 24. Bxh5 Bxh5 25. Qxh5 Nd3 26. cxd5 Qxd5 27. Rxc8 Rxc8 $15) 24... Ne4 {[%emt 0:00:05]} 25. f3 {[%emt 0:00:10]} ({Less strong is} 25. Bxh5 dxc4 26. Bxg6 fxg6 $14) 25... f5 {[%emt 0:00:21]} (25... Nxg3 $142 26. Bxg3 Qd7) 26. cxd5 {[%emt 0:00:14] Weighted Error Value: White=0.05 (flawless) /Black=0.37} 1-0